Workbook

Sheet formulas
A1: … | H1: … | I1: ga | J1: External CSF (1+2): mean | K1: Cortical GM (3+4): mean | L1: Fetal WM (5+6): mean | M1: Lateral ventricles (7+8): mean | N1: Cavum (9): mean | O1: Brainstem (10): mean | P1: Cerebellum (11+12+13): mean | Q1: Deep GM (14+15+16+17): mean | R1: 3rd & 4th ventricles (18+19): mean | S1: … | T1: ga | U1: External CSF (1+2): 95th | V1: Cortical GM (3+4): 95th | W1: Fetal WM (5+6): 95th | X1: Lateral ventricles (7+8): 95th | Y1: Cavum (9): 95th | Z1: Brainstem (10): 95th | AA1: Cerebellum (11+12+13): 95th | AB1: Deep GM (14+15+16+17): 95th | AC1: 3rd & 4th ventricles (18+19): 95th | AD1: … | AE1: ga | AF1: External CSF (1+2): 5th | AG1: Cortical GM (3+4): 5th | AH1: Fetal WM (5+6): 5th | AI1: Lateral ventricles (7+8): 5th | AJ1: Cavum (9): 5th | AK1: Brainstem (10): 5th | AL1: Cerebellum (11+12+13): 5th | AM1: Deep GM (14+15+16+17): 5th | AN1: 3rd & 4th ventricles (18+19): 5th | AO1: … | AP1: ga | AQ1: External CSF (1+2): residuals | AR1: Cortical GM (3+4): residuals | AS1: Fetal WM (5+6): residuals | AT1: Lateral ventricles (7+8): residuals | AU1: Cavum (9): residuals | AV1: Brainstem (10): residuals | AW1: Cerebellum (11+12+13): residuals | AX1: Deep GM (14+15+16+17): residuals | AY1: 3rd & 4th ventricles (18+19): residuals
A2: … | B2: Fit 1+2 CSF | E2: -0.2358 | F2: 17.993 | G2: -250 | H2: … | I2: 20 | J2: =$E$2*I2*I2+$F$2*I2+$G$2 -> 15.54 | K2: =$E$5*I2*I2+$F$5*I2+$G$5 -> 8.52 | L2: =$E$8*I2*I2+$F$8*I2+$G$8 -> 10.582 | M2: =$E$11*I2*I2+$F$11*I2+$G$11 -> 1.9441 | N2: =$E$14*I2*I2+$F$14*I2+$G$14 -> 0.096 | O2: =$E$17*I2*I2+$F$17*I2+$G$17 -> 1.0972 | P2: =$E$20*I2*I2+$F$20*I2+$G$20 -> 1.204 | Q2: =$E$23*I2*I2+$F$23*I2+$G$23 -> 1.4952 | R2: =$E$26*I2*I2+$F$26*I2+$G$26 -> 0.0552803 | S2: .. | T2: 20 | U2: =J2+1.645*AQ2 -> 24.21666781 | V2: =K2+1.645*AR2 -> 9.862333654 | W2: =L2+1.645*AS2 -> 14.07911767 | X2: =M2+1.645*AT2 -> 2.457676731 | Y2: =N2+1.645*AU2 -> 0.289781 | Z2: =O2+1.645*AV2 -> 1.200495637 | AA2: =P2+1.645*AW2 -> 1.249404468 | AB2: =Q2+1.645*AX2 -> 1.729101892 | AC2: =R2+1.645*AY2 -> 0.085129154 | AD2: .. | AE2: 20 | AF2: =J2-1.645*AQ2 -> 6.863332185 | AG2: =K2-1.645*AR2 -> 7.177666347 | AH2: =L2-1.645*AS2 -> 7.084882327 | AI2: =M2-1.645*AT2 -> 1.430523268 | AJ2: =N2-1.645*AU2 -> -0.097781 | AK2: =O2-1.645*AV2 -> 0.9939043635 | AL2: =P2-1.645*AW2 -> 1.158595533 | AM2: =Q2-1.645*AX2 -> 1.261298108 | AN2: =R2-1.645*AY2 -> 0.025431446 | AO2: … | AP2: 20 | AQ2: =$E$3*I2*I2+$F$3*I2+$G$3 -> 5.2745701 | AR2: =$E$6*I2*I2+$F$6*I2+$G$6 -> 0.8160083 | AS2: =$E$9*I2*I2+$F$9*I2+$G$9 -> 2.1259074 | AT2: =$E$12*I2*I2+$F$12*I2+$G$12 -> 0.3122047 | AU2: =$E$15*I2*I2+$F$15*I2+$G$15 -> 0.1178 | AV2: =$E$18*I2*I2+$F$18*I2+$G$18 -> 0.0627937 | AW2: =$E$21*I2*I2+$F$21*I2+$G$21 -> 0.0276015 | AX2: =$E$24*I2*I2+$F$24*I2+$G$24 -> 0.1421896 | AY2: =$E$27*I2*I2+$F$27*I2+$G$27 -> 0.0181452
E3: 0.0110467 | F3: -0.0036393 | G3: 0.9286761 | I3: =I2+1 -> 21 | J3: 23.8652 | K3: 9.2052 | L3: =$E$8*I3*I3+$F$8*I3+$G$8 -> 18.8434 | M3: =$E$11*I3*I3+$F$11*I3+$G$11 -> 2.2526 | N3: =$E$14*I3*I3+$F$14*I3+$G$14 -> 0.1964 | O3: =$E$17*I3*I3+$F$17*I3+$G$17 -> 1.339 | P3: =$E$20*I3*I3+$F$20*I3+$G$20 -> 1.3956 | Q3: =$E$23*I3*I3+$F$23*I3+$G$23 -> 2.0586 | R3: =$E$26*I3*I3+$F$26*I3+$G$26 -> 0.0751082 | T3: =T2+1 -> 21 | U3: =J3+1.645*AQ3 -> 33.28092585 | V3: =K3+1.645*AR3 -> 10.87353679 | W3: =L3+1.645*AS3 -> 23.17691595 | X3: =M3+1.645*AT3 -> 2.986148763 | Y3: =N3+1.645*AU3 -> 0.4046241 | Z3: =O3+1.645*AV3 -> 1.478347621 | AA3: =P3+1.645*AW3 -> 1.536447203 | AB3: =Q3+1.645*AX3 -> 2.382497374 | AC3: =R3+1.645*AY3 -> 0.1058626265 | AE3: =AE2+1 -> 21 | AF3: =J3-1.645*AQ3 -> 14.44947415 | AG3: =K3-1.645*AR3 -> 7.536863208 | AH3: =L3-1.645*AS3 -> 14.50988405 | AI3: =M3-1.645*AT3 -> 1.519051236 | AJ3: =N3-1.645*AU3 -> -0.0118241 | AK3: =O3-1.645*AV3 -> 1.199652379 | AL3: =P3-1.645*AW3 -> 1.254752797 | AM3: =Q3-1.645*AX3 -> 1.734702625 | AN3: =R3-1.645*AY3 -> 0.0443537735 | AP3: =AP2+1 -> 21 | AQ3: =$E$3*I3*I3+$F$3*I3+$G$3 -> 5.7238455 | AR3: =$E$6*I3*I3+$F$6*I3+$G$6 -> 1.0141865 | AS3: =$E$9*I3*I3+$F$9*I3+$G$9 -> 2.6343562 | AT3: =$E$12*I3*I3+$F$12*I3+$G$12 -> 0.4459263 | AU3: =$E$15*I3*I3+$F$15*I3+$G$15 -> 0.12658 | AV3: =$E$18*I3*I3+$F$18*I3+$G$18 -> 0.0847098 | AW3: =$E$21*I3*I3+$F$21*I3+$G$21 -> 0.0856214 | AX3: =$E$24*I3*I3+$F$24*I3+$G$24 -> 0.1968981 | AY3: =$E$27*I3*I3+$F$27*I3+$G$27 -> 0.0186957
I4: =I3+1 -> 22 | J4: 31.7188 | K4: 10.5008 | L4: 27.1494 | M4: 2.5545 | N4: 0.288 | O4: 1.5884 | P4: 1.6774 | Q4: 2.6518 | R4: 0.0957961 | T4: =T3+1 -> 22 | U4: =J4+1.645*AQ4 -> 41.90992752 | V4: =K4+1.645*AR4 -> 12.54931998 | W4: =L4+1.645*AS4 -> 32.35176086 | X4: =M4+1.645*AT4 -> 3.494910803 | Y4: =N4+1.645*AU4 -> 0.5111278 | Z4: =O4+1.645*AV4 -> 1.762828398 | AA4: =P4+1.645*AW4 -> 1.917444158 | AB4: =Q4+1.645*AX4 -> 3.063939616 | AC4: =R4+1.645*AY4 -> 0.128048299 | AE4: =AE3+1 -> 22 | AF4: =J4-1.645*AQ4 -> 21.52767248 | AG4: =K4-1.645*AR4 -> 8.452280019 | AH4: =L4-1.645*AS4 -> 21.94703914 | AI4: =M4-1.645*AT4 -> 1.614089196 | AJ4: =N4-1.645*AU4 -> 0.0648722 | AK4: =O4-1.645*AV4 -> 1.413971602 | AL4: =P4-1.645*AW4 -> 1.437355843 | AM4: =Q4-1.645*AX4 -> 2.239660384 | AN4: =R4-1.645*AY4 -> 0.063543901 | AP4: =AP3+1 -> 22 | AQ4: =$E$3*I4*I4+$F$3*I4+$G$3 -> 6.1952143 | AR4: =$E$6*I4*I4+$F$6*I4+$G$6 -> 1.2453009 | AS4: =$E$9*I4*I4+$F$9*I4+$G$9 -> 3.1625294 | AT4: =$E$12*I4*I4+$F$12*I4+$G$12 -> 0.5716783 | AU4: =$E$15*I4*I4+$F$15*I4+$G$15 -> 0.13564 | AV4: =$E$18*I4*I4+$F$18*I4+$G$18 -> 0.1060355 | AW4: =$E$21*I4*I4+$F$21*I4+$G$21 -> 0.1459235 | AX4: =$E$24*I4*I4+$F$24*I4+$G$24 -> 0.2505408 | AY4: =$E$27*I4*I4+$F$27*I4+$G$27 -> 0.0196062
B5: Fit 3+4 GM | E5: 0.3052 | F5: -11.828 | G5: 123 | I5: 23 | J5: 39.1008 | K5: 12.4068 | L5: 35.5 | M5: 2.8498 | N5: 0.3708 | O5: 1.8454 | P5: 2.0494 | Q5: 3.2748 | R5: 0.117344 | T5: 23 | U5: =J5+1.645*AQ5 -> 50.10367284 | V5: =K5+1.645*AR5 -> 14.88968322 | W5: =L5+1.645*AS5 -> 41.60365242 | X5: =M5+1.645*AT5 -> 3.983962851 | Y5: =N5+1.645*AU5 -> 0.6092921 | Z5: =O5+1.645*AV5 -> 2.053937966 | AA5: =P5+1.645*AW5 -> 2.392395331 | AB5: =Q5+1.645*AX5 -> 3.773428616 | AC5: =R5+1.645*AY5 -> 0.1516861715 | AE5: 23 | AF5: =J5-1.645*AQ5 -> 28.09792716 | AG5: =K5-1.645*AR5 -> 9.923916783 | AH5: =L5-1.645*AS5 -> 29.39634759 | AI5: =M5-1.645*AT5 -> 1.715637149 | AJ5: =N5-1.645*AU5 -> 0.1323079 | AK5: =O5-1.645*AV5 -> 1.636862034 | AL5: =P5-1.645*AW5 -> 1.706404669 | AM5: =Q5-1.645*AX5 -> 2.776171383 | AN5: =R5-1.645*AY5 -> 0.0830018285 | AP5: 23 | AQ5: =$E$3*I5*I5+$F$3*I5+$G$3 -> 6.6886765 | AR5: =$E$6*I5*I5+$F$6*I5+$G$6 -> 1.5093515 | AS5: =$E$9*I5*I5+$F$9*I5+$G$9 -> 3.710427 | AT5: =$E$12*I5*I5+$F$12*I5+$G$12 -> 0.6894607 | AU5: =$E$15*I5*I5+$F$15*I5+$G$15 -> 0.14498 | AV5: =$E$18*I5*I5+$F$18*I5+$G$18 -> 0.1267708 | AW5: =$E$21*I5*I5+$F$21*I5+$G$21 -> 0.2085078 | AX5: =$E$24*I5*I5+$F$24*I5+$G$24 -> 0.3031177 | AY5: =$E$27*I5*I5+$F$27*I5+$G$27 -> 0.0208767
E6: 0.0164681 | F6: -0.4770139 | G6: 3.7690463 | I6: 24 | J6: 46.0112 | K6: 14.9232 | L6: 43.8952 | M6: 3.1385 | N6: 0.4448 | O6: 2.11 | P6: 2.5116 | Q6: 3.9276 | R6: 0.1397519 | T6: 24 | U6: =J6+1.645*AQ6 -> 57.8621618 | V6: =K6+1.645*AR6 -> 17.8946265 | W6: =L6+1.645*AS6 -> 50.9325906 | X6: =M6+1.645*AT6 -> 4.453304907 | Y6: =N6+1.645*AU6 -> 0.699117 | Z6: =O6+1.645*AV6 -> 2.351676327 | AA6: =P6+1.645*AW6 -> 2.961300724 | AB6: =Q6+1.645*AX6 -> 4.510964376 | AC6: =R6+1.645*AY6 -> 0.176776244 | AE6: 24 | AF6: =J6-1.645*AQ6 -> 34.1602382 | AG6: =K6-1.645*AR6 -> 11.9517735 | AH6: =L6-1.645*AS6 -> 36.85780939 | AI6: =M6-1.645*AT6 -> 1.823695092 | AJ6: =N6-1.645*AU6 -> 0.190483 | AK6: =O6-1.645*AV6 -> 1.868323674 | AL6: =P6-1.645*AW6 -> 2.061899277 | AM6: =Q6-1.645*AX6 -> 3.344235624 | AN6: =R6-1.645*AY6 -> 0.102727556 | AP6: 24 | AQ6: =$E$3*I6*I6+$F$3*I6+$G$3 -> 7.2042321 | AR6: =$E$6*I6*I6+$F$6*I6+$G$6 -> 1.8063383 | AS6: =$E$9*I6*I6+$F$9*I6+$G$9 -> 4.278049 | AT6: =$E$12*I6*I6+$F$12*I6+$G$12 -> 0.7992735 | AU6: =$E$15*I6*I6+$F$15*I6+$G$15 -> 0.1546 | AV6: =$E$18*I6*I6+$F$18*I6+$G$18 -> 0.1469157 | AW6: =$E$21*I6*I6+$F$21*I6+$G$21 -> 0.2733743 | AX6: =$E$24*I6*I6+$F$24*I6+$G$24 -> 0.3546288 | AY6: =$E$27*I6*I6+$F$27*I6+$G$27 -> 0.0225072
I7: 25 | J7: 52.45 | K7: 18.05 | L7: 52.335 | M7: 3.4206 | N7: 0.51 | O7: 2.3822 | P7: 3.064 | Q7: 4.6102 | R7: 0.1630198 | T7: 25 | U7: =J7+1.645*AQ7 -> 65.18539441 | V7: =K7+1.645*AR7 -> 21.56414984 | W7: =L7+1.645*AS7 -> 60.33857543 | X7: =M7+1.645*AT7 -> 4.902936971 | Y7: =N7+1.645*AU7 -> 0.7806025 | Z7: =O7+1.645*AV7 -> 2.656043479 | AA7: =P7+1.645*AW7 -> 3.624160335 | AB7: =Q7+1.645*AX7 -> 5.276546895 | AC7: =R7+1.645*AY7 -> 0.2033185165 | AE7: 25 | AF7: =J7-1.645*AQ7 -> 39.71460559 | AG7: =K7-1.645*AR7 -> 14.53585016 | AH7: =L7-1.645*AS7 -> 44.33142457 | AI7: =M7-1.645*AT7 -> 1.938263028 | AJ7: =N7-1.645*AU7 -> 0.2393975 | AK7: =O7-1.645*AV7 -> 2.108356521 | AL7: =P7-1.645*AW7 -> 2.503839665 | AM7: =Q7-1.645*AX7 -> 3.943853105 | AN7: =R7-1.645*AY7 -> 0.1227210835 | AP7: 25 | AQ7: =$E$3*I7*I7+$F$3*I7+$G$3 -> 7.7418811 | AR7: =$E$6*I7*I7+$F$6*I7+$G$6 -> 2.1362613 | AS7: =$E$9*I7*I7+$F$9*I7+$G$9 -> 4.8653954 | AT7: =$E$12*I7*I7+$F$12*I7+$G$12 -> 0.9011167 | AU7: =$E$15*I7*I7+$F$15*I7+$G$15 -> 0.1645 | AV7: =$E$18*I7*I7+$F$18*I7+$G$18 -> 0.1664702 | AW7: =$E$21*I7*I7+$F$21*I7+$G$21 -> 0.340523 | AX7: =$E$24*I7*I7+$F$24*I7+$G$24 -> 0.4050741 | AY7: =$E$27*I7*I7+$F$27*I7+$G$27 -> 0.0244977
B8: Fit 5+6 WM | E8: 0.0223 | F8: 7.3471 | G8: -145.28 | I8: 26 | J8: 58.4172 | K8: 21.7872 | L8: 60.8194 | M8: 3.6961 | N8: 0.5664 | O8: 2.662 | P8: 3.7066 | Q8: 5.3226 | R8: 0.1871477 | T8: 26 | U8: =J8+1.645*AQ8 -> 72.07337066 | V8: =K8+1.645*AR8 -> 25.89825322 | W8: =L8+1.645*AS8 -> 69.8216069 | X8: =M8+1.645*AT8 -> 5.332859043 | Y8: =N8+1.645*AU8 -> 0.8537486 | Z8: =O8+1.645*AV8 -> 2.967039424 | AA8: =P8+1.645*AW8 -> 4.380974166 | AB8: =Q8+1.645*AX8 -> 6.070176172 | AC8: =R8+1.645*AY8 -> 0.231312989 | AE8: 26 | AF8: =J8-1.645*AQ8 -> 44.76102934 | AG8: =K8-1.645*AR8 -> 17.67614678 | AH8: =L8-1.645*AS8 -> 51.8171931 | AI8: =M8-1.645*AT8 -> 2.059340956 | AJ8: =N8-1.645*AU8 -> 0.2790514 | AK8: =O8-1.645*AV8 -> 2.356960577 | AL8: =P8-1.645*AW8 -> 3.032225835 | AM8: =Q8-1.645*AX8 -> 4.575023828 | AN8: =R8-1.645*AY8 -> 0.142982411 | AP8: 26 | AQ8: =$E$3*I8*I8+$F$3*I8+$G$3 -> 8.3016235 | AR8: =$E$6*I8*I8+$F$6*I8+$G$6 -> 2.4991205 | AS8: =$E$9*I8*I8+$F$9*I8+$G$9 -> 5.4724662 | AT8: =$E$12*I8*I8+$F$12*I8+$G$12 -> 0.9949903 | AU8: =$E$15*I8*I8+$F$15*I8+$G$15 -> 0.17468 | AV8: =$E$18*I8*I8+$F$18*I8+$G$18 -> 0.1854343 | AW8: =$E$21*I8*I8+$F$21*I8+$G$21 -> 0.4099539 | AX8: =$E$24*I8*I8+$F$24*I8+$G$24 -> 0.4544536 | AY8: =$E$27*I8*I8+$F$27*I8+$G$27 -> 0.0268482
E9: 0.0098622 | F9: 0.1040986 | G9: -3.9009446 | I9: 27 | J9: 63.9128 | K9: 26.1348 | L9: 69.3484 | M9: 3.965 | N9: 0.614 | O9: 2.9494 | P9: 4.4394 | Q9: 6.0648 | R9: 0.2121356 | T9: 27 | U9: =J9+1.645*AQ9 -> 78.52609055 | V9: =K9+1.645*AR9 -> 30.89693666 | W9: =L9+1.645*AS9 -> 79.381685 | X9: =M9+1.645*AT9 -> 5.743071123 | Y9: =N9+1.645*AU9 -> 0.9185553 | Z9: =O9+1.645*AV9 -> 3.28466416 | AA9: =P9+1.645*AW9 -> 5.231742215 | AB9: =Q9+1.645*AX9 -> 6.891852208 | AC9: =R9+1.645*AY9 -> 0.2607596615 | AE9: 27 | AF9: =J9-1.645*AQ9 -> 49.29950945 | AG9: =K9-1.645*AR9 -> 21.37266334 | AH9: =L9-1.645*AS9 -> 59.315115 | AI9: =M9-1.645*AT9 -> 2.186928877 | AJ9: =N9-1.645*AU9 -> 0.3094447 | AK9: =O9-1.645*AV9 -> 2.61413584 | AL9: =P9-1.645*AW9 -> 3.647057785 | AM9: =Q9-1.645*AX9 -> 5.237747791 | AN9: =R9-1.645*AY9 -> 0.1635115385 | AP9: 27 | AQ9: =$E$3*I9*I9+$F$3*I9+$G$3 -> 8.8834593 | AR9: =$E$6*I9*I9+$F$6*I9+$G$6 -> 2.8949159 | AS9: =$E$9*I9*I9+$F$9*I9+$G$9 -> 6.0992614 | AT9: =$E$12*I9*I9+$F$12*I9+$G$12 -> 1.0808943 | AU9: =$E$15*I9*I9+$F$15*I9+$G$15 -> 0.18514 | AV9: =$E$18*I9*I9+$F$18*I9+$G$18 -> 0.203808 | AW9: =$E$21*I9*I9+$F$21*I9+$G$21 -> 0.481667 | AX9: =$E$24*I9*I9+$F$24*I9+$G$24 -> 0.5027673 | AY9: =$E$27*I9*I9+$F$27*I9+$G$27 -> 0.0295587
I10: 28 | J10: 68.9368 | K10: 31.0928 | L10: 77.922 | M10: 4.2273 | N10: 0.6528 | O10: 3.2444 | P10: 5.2624 | Q10: 6.8368 | R10: 0.2379835 | T10: 28 | U10: =J10+1.645*AQ10 -> 84.54355408 | V10: =K10+1.645*AR10 -> 36.56020014 | W10: =L10+1.645*AS10 -> 89.01880975 | X10: =M10+1.645*AT10 -> 6.133573211 | Y10: =N10+1.645*AU10 -> 0.9750226 | Z10: =O10+1.645*AV10 -> 3.608917689 | AA10: =P10+1.645*AW10 -> 6.176464483 | AB10: =Q10+1.645*AX10 -> 7.741575004 | AC10: =R10+1.645*AY10 -> 0.291658534 | AE10: 28 | AF10: =J10-1.645*AQ10 -> 53.33004592 | AG10: =K10-1.645*AR10 -> 25.62539986 | AH10: =L10-1.645*AS10 -> 66.82519026 | AI10: =M10-1.645*AT10 -> 2.321026788 | AJ10: =N10-1.645*AU10 -> 0.3305774 | AK10: =O10-1.645*AV10 -> 2.879882312 | AL10: =P10-1.645*AW10 -> 4.348335516 | AM10: =Q10-1.645*AX10 -> 5.932024996 | AN10: =R10-1.645*AY10 -> 0.184308466 | AP10: 28 | AQ10: =$E$3*I10*I10+$F$3*I10+$G$3 -> 9.4873885 | AR10: =$E$6*I10*I10+$F$6*I10+$G$6 -> 3.3236475 | AS10: =$E$9*I10*I10+$F$9*I10+$G$9 -> 6.745781 | AT10: =$E$12*I10*I10+$F$12*I10+$G$12 -> 1.1588287 | AU10: =$E$15*I10*I10+$F$15*I10+$G$15 -> 0.19588 | AV10: =$E$18*I10*I10+$F$18*I10+$G$18 -> 0.2215913 | AW10: =$E$21*I10*I10+$F$21*I10+$G$21 -> 0.5556623 | AX10: =$E$24*I10*I10+$F$24*I10+$G$24 -> 0.5500152 | AY10: =$E$27*I10*I10+$F$27*I10+$G$27 -> 0.0326292
B11: Fit 7+8 Ventricles | E11: -0.0033 | F11: 0.4438 | G11: -5.6119 | I11: 29 | J11: 73.4892 | K11: 36.6612 | L11: 86.5402 | M11: 4.483 | N11: 0.6828 | O11: 3.547 | P11: 6.1756 | Q11: 7.6386 | R11: 0.2646914 | T11: 29 | U11: =J11+1.645*AQ11 -> 90.12576126 | V11: =K11+1.645*AR11 -> 42.88804367 | W11: =L11+1.645*AS11 -> 98.73298112 | X11: =M11+1.645*AT11 -> 6.504365307 | Y11: =N11+1.645*AU11 -> 1.0231505 | Z11: =O11+1.645*AV11 -> 3.939800009 | AA11: =P11+1.645*AW11 -> 7.215140971 | AB11: =Q11+1.645*AX11 -> 8.619344558 | AC11: =R11+1.645*AY11 -> 0.3240096065 | AE11: 29 | AF11: =J11-1.645*AQ11 -> 56.85263874 | AG11: =K11-1.645*AR11 -> 30.43435633 | AH11: =L11-1.645*AS11 -> 74.34741888 | AI11: =M11-1.645*AT11 -> 2.461634692 | AJ11: =N11-1.645*AU11 -> 0.3424495 | AK11: =O11-1.645*AV11 -> 3.154199991 | AL11: =P11-1.645*AW11 -> 5.136059029 | AM11: =Q11-1.645*AX11 -> 6.657855441 | AN11: =R11-1.645*AY11 -> 0.2053731935 | AP11: 29 | AQ11: =$E$3*I11*I11+$F$3*I11+$G$3 -> 10.1134111 | AR11: =$E$6*I11*I11+$F$6*I11+$G$6 -> 3.7853153 | AS11: =$E$9*I11*I11+$F$9*I11+$G$9 -> 7.412025 | AT11: =$E$12*I11*I11+$F$12*I11+$G$12 -> 1.2287935 | AU11: =$E$15*I11*I11+$F$15*I11+$G$15 -> 0.2069 | AV11: =$E$18*I11*I11+$F$18*I11+$G$18 -> 0.2387842 | AW11: =$E$21*I11*I11+$F$21*I11+$G$21 -> 0.6319398 | AX11: =$E$24*I11*I11+$F$24*I11+$G$24 -> 0.5961973 | AY11: =$E$27*I11*I11+$F$27*I11+$G$27 -> 0.0360597
E12: -0.0039848 | F12: 0.2970984 | G12: -4.0358433 | I12: 30 | J12: 77.57 | K12: 42.84 | L12: 95.203 | M12: 4.7321 | N12: 0.704 | O12: 3.8572 | P12: 7.179 | Q12: 8.4702 | R12: 0.2922593 | T12: 30 | U12: =J12+1.645*AQ12 -> 95.27271208 | V12: =K12+1.645*AR12 -> 49.88046725 | W12: =L12+1.645*AS12 -> 108.5241991 | X12: =M12+1.645*AT12 -> 6.855447411 | Y12: =N12+1.645*AU12 -> 1.062939 | Z12: =O12+1.645*AV12 -> 4.277311122 | AA12: =P12+1.645*AW12 -> 8.347771677 | AB12: =Q12+1.645*AX12 -> 9.525160872 | AC12: =R12+1.645*AY12 -> 0.357812879 | AE12: 30 | AF12: =J12-1.645*AQ12 -> 59.86728792 | AG12: =K12-1.645*AR12 -> 35.79953275 | AH12: =L12-1.645*AS12 -> 81.88180086 | AI12: =M12-1.645*AT12 -> 2.608752589 | AJ12: =N12-1.645*AU12 -> 0.345061 | AK12: =O12-1.645*AV12 -> 3.437088878 | AL12: =P12-1.645*AW12 -> 6.010228322 | AM12: =Q12-1.645*AX12 -> 7.415239128 | AN12: =R12-1.645*AY12 -> 0.226705721 | AP12: 30 | AQ12: =$E$3*I12*I12+$F$3*I12+$G$3 -> 10.7615271 | AR12: =$E$6*I12*I12+$F$6*I12+$G$6 -> 4.2799193 | AS12: =$E$9*I12*I12+$F$9*I12+$G$9 -> 8.0979934 | AT12: =$E$12*I12*I12+$F$12*I12+$G$12 -> 1.2907887 | AU12: =$E$15*I12*I12+$F$15*I12+$G$15 -> 0.2182 | AV12: =$E$18*I12*I12+$F$18*I12+$G$18 -> 0.2553867 | AW12: =$E$21*I12*I12+$F$21*I12+$G$21 -> 0.7104995 | AX12: =$E$24*I12*I12+$F$24*I12+$G$24 -> 0.6413136 | AY12: =$E$27*I12*I12+$F$27*I12+$G$27 -> 0.0398502
I13: 31 | J13: 81.1792 | K13: 49.6292 | L13: 103.9104 | M13: 4.9746 | N13: 0.7164 | O13: 4.175 | P13: 8.2726 | Q13: 9.3316 | R13: 0.3206872 | T13: 31 | U13: =J13+1.645*AQ13 -> 99.98440654 | V13: =K13+1.645*AR13 -> 57.53747088 | W13: =L13+1.645*AS13 -> 118.3924638 | X13: =M13+1.645*AT13 -> 7.186819523 | Y13: =N13+1.645*AU13 -> 1.0943881 | Z13: =O13+1.645*AV13 -> 4.621451026 | AA13: =P13+1.645*AW13 -> 9.574356603 | AB13: =Q13+1.645*AX13 -> 10.45902394 | AC13: =R13+1.645*AY13 -> 0.3930683515 | AE13: 31 | AF13: =J13-1.645*AQ13 -> 62.37399346 | AG13: =K13-1.645*AR13 -> 41.72092912 | AH13: =L13-1.645*AS13 -> 89.4283362 | AI13: =M13-1.645*AT13 -> 2.762380476 | AJ13: =N13-1.645*AU13 -> 0.3384119 | AK13: =O13-1.645*AV13 -> 3.728548974 | AL13: =P13-1.645*AW13 -> 6.970843397 | AM13: =Q13-1.645*AX13 -> 8.204176055 | AN13: =R13-1.645*AY13 -> 0.2483060485 | AP13: 31 | AQ13: =$E$3*I13*I13+$F$3*I13+$G$3 -> 11.4317365 | AR13: =$E$6*I13*I13+$F$6*I13+$G$6 -> 4.8074595 | AS13: =$E$9*I13*I13+$F$9*I13+$G$9 -> 8.8036862 | AT13: =$E$12*I13*I13+$F$12*I13+$G$12 -> 1.3448143 | AU13: =$E$15*I13*I13+$F$15*I13+$G$15 -> 0.22978 | AV13: =$E$18*I13*I13+$F$18*I13+$G$18 -> 0.2713988 | AW13: =$E$21*I13*I13+$F$21*I13+$G$21 -> 0.7913414 | AX13: =$E$24*I13*I13+$F$24*I13+$G$24 -> 0.6853641 | AY13: =$E$27*I13*I13+$F$27*I13+$G$27 -> 0.0440007
B14: Fit 9 Cavum | E14: -0.0044 | F14: 0.2808 | G14: -3.76 | I14: 32 | J14: 84.3168 | K14: 57.0288 | L14: 112.6624 | M14: 5.2105 | N14: 0.72 | O14: 4.5004 | P14: 9.4564 | Q14: 10.2228 | R14: 0.3499751 | T14: 32 | U14: =J14+1.645*AQ14 -> 104.2608446 | V14: =K14+1.645*AR14 -> 65.85905456 | W14: =L14+1.645*AS14 -> 128.3377751 | X14: =M14+1.645*AT14 -> 7.498481643 | Y14: =N14+1.645*AU14 -> 1.1174978 | Z14: =O14+1.645*AV14 -> 4.972219723 | AA14: =P14+1.645*AW14 -> 10.89489575 | AB14: =Q14+1.645*AX14 -> 11.42093378 | AC14: =R14+1.645*AY14 -> 0.429776024 | AE14: 32 | AF14: =J14-1.645*AQ14 -> 64.37275535 | AG14: =K14-1.645*AR14 -> 48.19854544 | AH14: =L14-1.645*AS14 -> 96.98702491 | AI14: =M14-1.645*AT14 -> 2.922518356 | AJ14: =N14-1.645*AU14 -> 0.3225022 | AK14: =O14-1.645*AV14 -> 4.028580278 | AL14: =P14-1.645*AW14 -> 8.017904253 | AM14: =Q14-1.645*AX14 -> 9.024666224 | AN14: =R14-1.645*AY14 -> 0.270174176 | AP14: 32 | AQ14: =$E$3*I14*I14+$F$3*I14+$G$3 -> 12.1240393 | AR14: =$E$6*I14*I14+$F$6*I14+$G$6 -> 5.3679359 | AS14: =$E$9*I14*I14+$F$9*I14+$G$9 -> 9.5291034 | AT14: =$E$12*I14*I14+$F$12*I14+$G$12 -> 1.3908703 | AU14: =$E$15*I14*I14+$F$15*I14+$G$15 -> 0.24164 | AV14: =$E$18*I14*I14+$F$18*I14+$G$18 -> 0.2868205 | AW14: =$E$21*I14*I14+$F$21*I14+$G$21 -> 0.8744655 | AX14: =$E$24*I14*I14+$F$24*I14+$G$24 -> 0.7283488 | AY14: =$E$27*I14*I14+$F$27*I14+$G$27 -> 0.0485112
E15: 0.00014 | F15: 0.00304 | G15: 0.001 | I15: 33 | J15: 86.9828 | K15: 65.0388 | L15: 121.459 | M15: 5.4398 | N15: 0.7148 | O15: 4.8334 | P15: 10.7304 | Q15: 11.1438 | R15: 0.380123 | T15: 33 | U15: =J15+1.645*AQ15 -> 108.1020264 | V15: =K15+1.645*AR15 -> 74.84521828 | W15: =L15+1.645*AS15 -> 138.360133 | X15: =M15+1.645*AT15 -> 7.790433771 | Y15: =N15+1.645*AU15 -> 1.1322681 | Z15: =O15+1.645*AV15 -> 5.329617211 | AA15: =P15+1.645*AW15 -> 12.30938911 | AB15: =Q15+1.645*AX15 -> 12.41089037 | AC15: =R15+1.645*AY15 -> 0.4679358965 | AE15: 33 | AF15: =J15-1.645*AQ15 -> 65.8635736 | AG15: =K15-1.645*AR15 -> 55.23238172 | AH15: =L15-1.645*AS15 -> 104.557867 | AI15: =M15-1.645*AT15 -> 3.089166229 | AJ15: =N15-1.645*AU15 -> 0.2973319 | AK15: =O15-1.645*AV15 -> 4.337182789 | AL15: =P15-1.645*AW15 -> 9.151410889 | AM15: =Q15-1.645*AX15 -> 9.876709634 | AN15: =R15-1.645*AY15 -> 0.2923101035 | AP15: 33 | AQ15: =$E$3*I15*I15+$F$3*I15+$G$3 -> 12.8384355 | AR15: =$E$6*I15*I15+$F$6*I15+$G$6 -> 5.9613485 | AS15: =$E$9*I15*I15+$F$9*I15+$G$9 -> 10.274245 | AT15: =$E$12*I15*I15+$F$12*I15+$G$12 -> 1.4289567 | AU15: =$E$15*I15*I15+$F$15*I15+$G$15 -> 0.25378 | AV15: =$E$18*I15*I15+$F$18*I15+$G$18 -> 0.3016518 | AW15: =$E$21*I15*I15+$F$21*I15+$G$21 -> 0.9598718 | AX15: =$E$24*I15*I15+$F$24*I15+$G$24 -> 0.7702677 | AY15: =$E$27*I15*I15+$F$27*I15+$G$27 -> 0.0533817
I16: 34 | J16: 89.1772 | K16: 73.6592 | L16: 130.3002 | M16: 5.6625 | N16: 0.7008 | O16: 5.174 | P16: 12.0946 | Q16: 12.0946 | R16: 0.4111309 | T16: 34 | U16: =J16+1.645*AQ16 -> 111.5079518 | V16: =K16+1.645*AR16 -> 84.49596206 | W16: =L16+1.645*AS16 -> 148.4595376 | X16: =M16+1.645*AT16 -> 8.062675907 | Y16: =N16+1.645*AU16 -> 1.138699 | Z16: =O16+1.645*AV16 -> 5.693643492 | AA16: =P16+1.645*AW16 -> 13.81783669 | AB16: =Q16+1.645*AX16 -> 13.42889372 | AC16: =R16+1.645*AY16 -> 0.507547969 | AE16: 34 | AF16: =J16-1.645*AQ16 -> 66.84644821 | AG16: =K16-1.645*AR16 -> 62.82243794 | AH16: =L16-1.645*AS16 -> 112.1408624 | AI16: =M16-1.645*AT16 -> 3.262324092 | AJ16: =N16-1.645*AU16 -> 0.262901 | AK16: =O16-1.645*AV16 -> 4.654356509 | AL16: =P16-1.645*AW16 -> 10.37136331 | AM16: =Q16-1.645*AX16 -> 10.76030628 | AN16: =R16-1.645*AY16 -> 0.314713831 | AP16: 34 | AQ16: =$E$3*I16*I16+$F$3*I16+$G$3 -> 13.5749251 | AR16: =$E$6*I16*I16+$F$6*I16+$G$6 -> 6.5876973 | AS16: =$E$9*I16*I16+$F$9*I16+$G$9 -> 11.039111 | AT16: =$E$12*I16*I16+$F$12*I16+$G$12 -> 1.4590735 | AU16: =$E$15*I16*I16+$F$15*I16+$G$15 -> 0.2662 | AV16: =$E$18*I16*I16+$F$18*I16+$G$18 -> 0.3158927 | AW16: =$E$21*I16*I16+$F$21*I16+$G$21 -> 1.0475603 | AX16: =$E$24*I16*I16+$F$24*I16+$G$24 -> 0.8111208 | AY16: =$E$27*I16*I16+$F$27*I16+$G$27 -> 0.0586122
B17: Fit 10 Brainstem | E17: 0.0038 | F17: 0.086 | G17: -2.1428 | I17: 35 | J17: 90.9 | K17: 82.89 | L17: 139.186 | M17: 5.8786 | N17: 0.678 | O17: 5.5222 | P17: 13.549 | Q17: 13.0752 | R17: 0.4429988 | T17: 35 | U17: =J17+1.645*AQ17 -> 114.4786208 | V17: =K17+1.645*AR17 -> 94.81128588 | W17: =L17+1.645*AS17 -> 158.6359888 | X17: =M17+1.645*AT17 -> 8.315208051 | Y17: =N17+1.645*AU17 -> 1.1367905 | Z17: =O17+1.645*AV17 -> 6.064298564 | AA17: =P17+1.645*AW17 -> 15.4202385 | AB17: =Q17+1.645*AX17 -> 14.47494382 | AC17: =R17+1.645*AY17 -> 0.5486122415 | AE17: 35 | AF17: =J17-1.645*AQ17 -> 67.32137918 | AG17: =K17-1.645*AR17 -> 70.96871412 | AH17: =L17-1.645*AS17 -> 119.7360112 | AI17: =M17-1.645*AT17 -> 3.441991948 | AJ17: =N17-1.645*AU17 -> 0.2192095 | AK17: =O17-1.645*AV17 -> 4.980101436 | AL17: =P17-1.645*AW17 -> 11.67776151 | AM17: =Q17-1.645*AX17 -> 11.67545618 | AN17: =R17-1.645*AY17 -> 0.3373853585 | AP17: 35 | AQ17: =$E$3*I17*I17+$F$3*I17+$G$3 -> 14.3335081 | AR17: =$E$6*I17*I17+$F$6*I17+$G$6 -> 7.2469823 | AS17: =$E$9*I17*I17+$F$9*I17+$G$9 -> 11.8237014 | AT17: =$E$12*I17*I17+$F$12*I17+$G$12 -> 1.4812207 | AU17: =$E$15*I17*I17+$F$15*I17+$G$15 -> 0.2789 | AV17: =$E$18*I17*I17+$F$18*I17+$G$18 -> 0.3295432 | AW17: =$E$21*I17*I17+$F$21*I17+$G$21 -> 1.137531 | AX17: =$E$24*I17*I17+$F$24*I17+$G$24 -> 0.8509081 | AY17: =$E$27*I17*I17+$F$27*I17+$G$27 -> 0.0642027
E18: -0.0002952 | F18: 0.0340193 | G18: -0.4995123 | I18: 36 | J18: 92.1512 | K18: 92.7312 | L18: 148.1164 | M18: 6.0881 | N18: 0.6464 | O18: 5.878 | P18: 15.0936 | Q18: 14.0856 | R18: 0.4757267 | T18: 36 | U18: =J18+1.645*AQ18 -> 117.0140335 | V18: =K18+1.645*AR18 -> 105.7911898 | W18: =L18+1.645*AS18 -> 168.8894866 | X18: =M18+1.645*AT18 -> 8.548030203 | Y18: =N18+1.645*AU18 -> 1.1265426 | Z18: =O18+1.645*AV18 -> 6.441582429 | AA18: =P18+1.645*AW18 -> 17.11659452 | AB18: =Q18+1.645*AX18 -> 15.54904069 | AC18: =R18+1.645*AY18 -> 0.591128714 | AE18: 36 | AF18: =J18-1.645*AQ18 -> 67.2883665 | AG18: =K18-1.645*AR18 -> 79.67121024 | AH18: =L18-1.645*AS18 -> 127.3433134 | AI18: =M18-1.645*AT18 -> 3.628169796 | AJ18: =N18-1.645*AU18 -> 0.1662574 | AK18: =O18-1.645*AV18 -> 5.314417571 | AL18: =P18-1.645*AW18 -> 13.07060548 | AM18: =Q18-1.645*AX18 -> 12.62215931 | AN18: =R18-1.645*AY18 -> 0.360324686 | AP18: 36 | AQ18: =$E$3*I18*I18+$F$3*I18+$G$3 -> 15.1141845 | AR18: =$E$6*I18*I18+$F$6*I18+$G$6 -> 7.9392035 | AS18: =$E$9*I18*I18+$F$9*I18+$G$9 -> 12.6280162 | AT18: =$E$12*I18*I18+$F$12*I18+$G$12 -> 1.4953983 | AU18: =$E$15*I18*I18+$F$15*I18+$G$15 -> 0.29188 | AV18: =$E$18*I18*I18+$F$18*I18+$G$18 -> 0.3426033 | AW18: =$E$21*I18*I18+$F$21*I18+$G$21 -> 1.2297839 | AX18: =$E$24*I18*I18+$F$24*I18+$G$24 -> 0.8896296 | AY18: =$E$27*I18*I18+$F$27*I18+$G$27 -> 0.0701532
I19: 37 | J19: 92.9308 | K19: 103.1828 | L19: 157.0914 | M19: 6.291 | N19: 0.606 | O19: 6.2414 | P19: 16.7284 | Q19: 15.1258 | R19: 0.5093146 | T19: 37 | U19: =J19+1.645*AQ19 -> 119.1141898 | V19: =K19+1.645*AR19 -> 117.4356737 | W19: =L19+1.645*AS19 -> 179.2200311 | X19: =M19+1.645*AT19 -> 8.761142364 | Y19: =N19+1.645*AU19 -> 1.1079553 | Z19: =O19+1.645*AV19 -> 6.825495085 | AA19: =P19+1.645*AW19 -> 18.90690476 | AB19: =Q19+1.645*AX19 -> 16.65118432 | AC19: =R19+1.645*AY19 -> 0.6350973865 | AE19: 37 | AF19: =J19-1.645*AQ19 -> 66.74741018 | AG19: =K19-1.645*AR19 -> 88.92992632 | AH19: =L19-1.645*AS19 -> 134.9627689 | AI19: =M19-1.645*AT19 -> 3.820857636 | AJ19: =N19-1.645*AU19 -> 0.1040447 | AK19: =O19-1.645*AV19 -> 5.657304915 | AL19: =P19-1.645*AW19 -> 14.54989525 | AM19: =Q19-1.645*AX19 -> 13.60041568 | AN19: =R19-1.645*AY19 -> 0.3835318135 | AP19: 37 | AQ19: =$E$3*I19*I19+$F$3*I19+$G$3 -> 15.9169543 | AR19: =$E$6*I19*I19+$F$6*I19+$G$6 -> 8.6643609 | AS19: =$E$9*I19*I19+$F$9*I19+$G$9 -> 13.4520554 | AT19: =$E$12*I19*I19+$F$12*I19+$G$12 -> 1.5016063 | AU19: =$E$15*I19*I19+$F$15*I19+$G$15 -> 0.30514 | AV19: =$E$18*I19*I19+$F$18*I19+$G$18 -> 0.355073 | AW19: =$E$21*I19*I19+$F$21*I19+$G$21 -> 1.324319 | AX19: =$E$24*I19*I19+$F$24*I19+$G$24 -> 0.9272853 | AY19: =$E$27*I19*I19+$F$27*I19+$G$27 -> 0.0764637
B20: Fit 11+12+13 cerebellum | E20: 0.0451 | F20: -1.6575 | G20: 16.314 | I20: 38 | J20: 93.2388 | K20: 114.2448 | L20: 166.111 | M20: 6.4873 | N20: 0.5568 | O20: 6.6124 | P20: 18.4534 | Q20: 16.1958 | R20: 0.5437625 | T20: 38 | U20: =J20+1.645*AQ20 -> 120.7790898 | V20: =K20+1.645*AR20 -> 129.7447377 | W20: =L20+1.645*AS20 -> 189.6276223 | X20: =M20+1.645*AT20 -> 8.954544531 | Y20: =N20+1.645*AU20 -> 1.0810286 | Z20: =O20+1.645*AV20 -> 7.216036533 | AA20: =P20+1.645*AW20 -> 20.79116921 | AB20: =Q20+1.645*AX20 -> 17.7813747 | AC20: =R20+1.645*AY20 -> 0.680518259 | AE20: 38 | AF20: =J20-1.645*AQ20 -> 65.69851021 | AG20: =K20-1.645*AR20 -> 98.74486235 | AH20: =L20-1.645*AS20 -> 142.5943777 | AI20: =M20-1.645*AT20 -> 4.020055468 | AJ20: =N20-1.645*AU20 -> 0.0325714 | AK20: =O20-1.645*AV20 -> 6.008763466 | AL20: =P20-1.645*AW20 -> 16.11563079 | AM20: =Q20-1.645*AX20 -> 14.6102253 | AN20: =R20-1.645*AY20 -> 0.407006741 | AP20: 38 | AQ20: =$E$3*I20*I20+$F$3*I20+$G$3 -> 16.7418175 | AR20: =$E$6*I20*I20+$F$6*I20+$G$6 -> 9.4224545 | AS20: =$E$9*I20*I20+$F$9*I20+$G$9 -> 14.295819 | AT20: =$E$12*I20*I20+$F$12*I20+$G$12 -> 1.4998447 | AU20: =$E$15*I20*I20+$F$15*I20+$G$15 -> 0.31868 | AV20: =$E$18*I20*I20+$F$18*I20+$G$18 -> 0.3669523 | AW20: =$E$21*I20*I20+$F$21*I20+$G$21 -> 1.4211363 | AX20: =$E$24*I20*I20+$F$24*I20+$G$24 -> 0.9638752 | AY20: =$E$27*I20*I20+$F$27*I20+$G$27 -> 0.0831342
E21: 0.0011411 | F21: 0.0112348 | G21: -0.6535345 | I21: 39 | J21: 93.0752 | K21: 125.9172 | L21: 175.1752 | M21: 6.677 | N21: 0.4988 | O21: 6.991 | P21: 20.2686 | Q21: 17.2956 | R21: 0.5790704 | T21: 39 | U21: =J21+1.645*AQ21 -> 122.0087334 | V21: =K21+1.645*AR21 -> 142.7183817 | W21: =L21+1.645*AS21 -> 200.11226 | X21: =M21+1.645*AT21 -> 9.128236707 | Y21: =N21+1.645*AU21 -> 1.0457625 | Z21: =O21+1.645*AV21 -> 7.613206774 | AA21: =P21+1.645*AW21 -> 22.76938789 | AB21: =Q21+1.645*AX21 -> 18.93961185 | AC21: =R21+1.645*AY21 -> 0.7273913315 | AE21: 39 | AF21: =J21-1.645*AQ21 -> 64.14166661 | AG21: =K21-1.645*AR21 -> 109.1160183 | AH21: =L21-1.645*AS21 -> 150.23814 | AI21: =M21-1.645*AT21 -> 4.225763292 | AJ21: =N21-1.645*AU21 -> -0.0481625 | AK21: =O21-1.645*AV21 -> 6.368793226 | AL21: =P21-1.645*AW21 -> 17.76781211 | AM21: =Q21-1.645*AX21 -> 15.65158815 | AN21: =R21-1.645*AY21 -> 0.4307494685 | AP21: 39 | AQ21: =$E$3*I21*I21+$F$3*I21+$G$3 -> 17.5887741 | AR21: =$E$6*I21*I21+$F$6*I21+$G$6 -> 10.2134843 | AS21: =$E$9*I21*I21+$F$9*I21+$G$9 -> 15.159307 | AT21: =$E$12*I21*I21+$F$12*I21+$G$12 -> 1.4901135 | AU21: =$E$15*I21*I21+$F$15*I21+$G$15 -> 0.3325 | AV21: =$E$18*I21*I21+$F$18*I21+$G$18 -> 0.3782412 | AW21: =$E$21*I21*I21+$F$21*I21+$G$21 -> 1.5202358 | AX21: =$E$24*I21*I21+$F$24*I21+$G$24 -> 0.9993993 | AY21: =$E$27*I21*I21+$F$27*I21+$G$27 -> 0.0901647
B23: Fit 14+15+16+17 DGM | E23: 0.0149 | F23: -0.0475 | G23: -3.5148
E24: -0.0005329 | F24: 0.0765574 | G24: -1.1757984
B26: Fit 18+19 3rd & 4th ventricles | E26: 0.00043 | F26: 0.0021979 | G26: -0.1606777
E27: 0.00018 | F27: -0.0068295 | G27: 0.0827352

Sheet graphs
C6: Subject
B7: GA | C7: 29.71
B8: External CSF (1+2) | C8: 63.5
B9: Cortical GM (3+4) | C9: 38.5006
B10: Fetal WM (5+6) | C10: 89.2863
B11: Lateral ventricles (7+8) | C11: 4.26762
B12: Cavum (9) | C12: 0.958625
B13: Brainstem (10) | C13: 3.84312
B14: Cerebellum (11+12+13) | C14: 6.9185
B15: Deep GM (14+15+16+17) | C15: 8.19112
B16: 3rd & 4th ventricles (18+19) | C16: 0.26
